fUSD/lending_fUSD_20241001
["ID","MTS","AMOUNT","RATE_DAILY","PERIOD"]
[339656264,1727813476071,-152.0,0.00024419,20]
[339656265,1727813476079,-335.01246207,0.0002442,2]
[339656266,1727813476089,-515.399955,0.000245,12]
[339656267,1727813476098,-196.77461403,0.00024548,2]
[339656268,1727813476107,-28245.29545953,0.00024558,2]
[339656269,1727813476118,-17530.940144,0.000246,2]
[339656270,1727813476127,-8564.75,0.00024658,4]
[339656271,1727813476136,-245.55,0.00024658,4]
[339656272,1727813476146,-152.0,0.00024678,21]
[339656273,1727813476156,-232.87020492,0.000247,2]
[339656274,1727813476166,-500.38558792,0.0002489,20]
[339656275,1727813476175,-800.0,0.000249,6]
[339656276,1727813476185,-15167.12025865,0.000249,2]
[339656277,1727813476193,-152.0,0.00024938,22]
[339656278,1727813476202,-243696.0,0.00024938,2]
[339656279,1727813476211,-155.05,0.00024962,2]
[339656280,1727813476220,-2000.0,0.00024986,120]
[339656281,1727813476229,-42413.21009878,0.00025,2]
[339656282,1727813476238,-327.20366932,0.00025,2]
[339656283,1727813476246,-2879.93066566,0.00025,2]
[339656284,1727813476255,-27355.412089,0.00025,7]
[339656285,1727813476264,-2500.0,0.00025,2]
[339656286,1727813476273,-38902.76853296,0.00025,2]
[339656287,1727813476282,-3000.0,0.00025,20]
[339656288,1727813476291,-500.0,0.00025,5]
[339656289,1727813476300,-330.53338237,0.00025,7]
[339656290,1727813476309,-300.0,0.00025,10]
[339656291,1727813476318,-900.0,0.00025,26]
[339656292,1727813476328,-150.0,0.00025,10]
[339656293,1727813476336,-2000.0,0.00025,7]
[339656294,1727813476345,-1000.0,0.00025,7]
[339656295,1727813476354,-150.0,0.00025,10]
[339656296,1727813476364,-2340.01527693,0.00025,30]
[339656297,1727813476373,-1010.12377695,0.00025,60]
[339656298,1727813476382,-1000.0,0.00025,60]
[339656299,1727813476391,-1500.0,0.00025,120]
[339656300,1727813476400,-302.61043547,0.00025,30]
[339656301,1727813476409,-2100.0,0.00025,30]
[339656302,1727813476418,-188.19851534,0.00025,120]
[339656303,1727813476427,-633.28428154,0.00025,120]
[339656304,1727813476438,-3141.59728909,0.00025,60]
[339656305,1727813476450,-200.0,0.00025,120]
[339656306,1727813476461,-155.17016571,0.00025,10]
[339656307,1727813476470,-1000.0,0.00025,2]
[339656308,1727813476479,-1400.0,0.00025,2]
[339656309,1727813476488,-1000.0,0.00025,2]
[339656310,1727813476497,-2968.32703551,0.0002509,120]
[339656311,1727813476506,-3201.27232049,0.000251,2]
[339656312,1727813476515,-5000.0,0.000251,10]
[339656313,1727813476526,-152.0,0.00025197,23]
[339656314,1727813476537,-280.0,0.000253,10]
[339656315,1727813476546,-152.0,0.00025457,24]
[339656316,1727813476555,-1000.28181003,0.000255,2]
[339656317,1727813476564,-217.44,0.00025548,2]
[339656318,1727813476573,-151.0,0.0002556,2]
[339656319,1727813476582,-152.0,0.00025716,25]
[339656320,1727813476591,-3000.0,0.000258,2]
[339656321,1727813476600,-2000.0,0.00025975,120]
[339656322,1727813476609,-152.0,0.00025976,26]
[339656323,1727813476619,-378.18981592,0.0002599,2]
[339656324,1727813476628,-900.0,0.00026,27]
[339656325,1727813476638,-4279.68246086,0.00026,2]
[339656326,1727813476647,-4433.65,0.00026,2]
[339656327,1727813476656,-718.99487098,0.00026,30]
[339656328,1727813476665,-500.0,0.00026,30]
[339656329,1727813476674,-500.0,0.00026,30]
[339656330,1727813476683,-500.0,0.00026,30]
[339656331,1727813476692,-500.0,0.00026,30]
[339656332,1727813476701,-500.0,0.00026,30]
[339656333,1727813476709,-500.0,0.00026,30]
[339656334,1727813476718,-500.0,0.00026,30]
[339656335,1727813476727,-500.0,0.00026,30]
[339656336,1727813476736,-500.0,0.00026,30]
[339656337,1727813476745,-500.0,0.00026,30]
[339656338,1727813476754,-515.41964078,0.0002604,2]
[339656339,1727813476763,-754.17,0.00026219,2]
[339656340,1727813476772,-423.21,0.00026219,2]
[339656341,1727813476781,-754.17,0.00026219,2]
[339656342,1727813476790,-423.21,0.00026219,2]
[339656343,1727813476799,-754.17,0.00026219,2]
[339656344,1727813476810,-422.58,0.00026219,2]
[339656345,1727813476819,-754.17,0.00026219,2]
[339656346,1727813476828,-753.47,0.00026219,2]
[339656347,1727813476838,-152.0,0.00026235,27]
[339656348,1727813476848,-25974.05851947,0.000264,2]
[339656349,1727813476857,-405.75,0.00026403,2]
[339656350,1727813476869,-150.0,0.0002647,2]
[339656351,1727813476878,-1082.0,0.0002647,2]
[339656352,1727813476887,-152.0,0.00026495,28]
[339656353,1727813476896,-1264.0,0.0002657,2]
[339656354,1727813476905,-625.0,0.0002657,2]
[339656355,1727813476915,-559.0,0.0002657,2]
[339656356,1727813476924,-810.0,0.0002657,2]
[339656357,1727813476933,-933.0,0.0002657,2]
[339656358,1727813476943,-1905.0,0.0002657,2]
[339656359,1727813476951,-554.0,0.0002657,2]
[339656360,1727813476961,-807.0,0.0002657,2]
[339656361,1727813476969,-3350.0,0.0002657,2]
[339656362,1727813476979,-1910.0,0.0002657,2]
[339656363,1727813476988,-152.0,0.00026754,29]
[339656364,1727813476998,-700.0,0.000268,5]
[339656365,1727813477007,-500.0,0.00026953,120]
[339656366,1727813477016,-2000.0,0.00026964,120]
[339656367,1727813477024,-11089.41150327,0.00027,2]
[339656368,1727813477033,-396.16656355,0.00027,2]
[339656369,1727813477042,-480.1286339,0.00027,2]
[339656370,1727813477051,-104726.19976117,0.00027,7]
[339656371,1727813477061,-126932.40684596,0.00027,7]
[339656372,1727813477070,-228339.39858592,0.00027,7]
[339656373,1727813477079,-176662.30276609,0.00027,7]
[339656374,1727813477087,-49763.0702729,0.00027,7]
[339656375,1727813477096,-1000.0,0.00027,20]
[339656376,1727813477105,-1000.0,0.00027,20]
[339656377,1727813477115,-1000.0,0.00027,20]
[339656378,1727813477124,-1000.0,0.00027,20]
[339656379,1727813477133,-1000.0,0.00027,20]
[339656380,1727813477142,-1000.0,0.00027,20]
[339656381,1727813477150,-1000.0,0.00027,20]
[339656382,1727813477159,-1000.0,0.00027,20]
[339656383,1727813477168,-1000.0,0.00027,20]
[339656384,1727813477177,-1000.0,0.00027,20]
[339656385,1727813477186,-1000.0,0.00027,20]
[339656386,1727813477195,-1000.0,0.00027,20]
[339656387,1727813477204,-1000.0,0.00027,20]
[339656388,1727813477214,-1000.0,0.00027,20]
[339656389,1727813477224,-1000.0,0.00027,20]
[339656390,1727813477234,-1000.0,0.00027,20]
[339656391,1727813477242,-1000.0,0.00027,20]
[339656392,1727813477252,-1000.0,0.00027,20]
[339656393,1727813477261,-1000.0,0.00027,20]
[339656394,1727813477270,-1000.0,0.00027,20]
[339656395,1727813477279,-1000.0,0.00027,20]
[339656396,1727813477288,-1000.0,0.00027,20]
[339656397,1727813477297,-1000.0,0.00027,20]
[339656398,1727813477306,-1000.0,0.00027,20]
[339656399,1727813477315,-1000.0,0.00027,20]
[339656400,1727813477324,-1000.0,0.00027,20]
[339656401,1727813477334,-1000.0,0.00027,20]
[339656402,1727813477342,-1000.0,0.00027,20]
[339656403,1727813477351,-1000.0,0.00027,20]
[339656404,1727813477361,-2144.24667177,0.00027,20]
[339656405,1727813477378,-27958.92225126,0.00027,15]
[339656406,1727813477387,-900.0,0.00027,28]
[339656407,1727813477396,-533.11489621,0.00027,30]
[339656408,1727813477405,-203.04727415,0.00027,30]
[339656409,1727813477415,-500.0,0.00027,30]
[339656410,1727813477424,-500.0,0.00027,30]
[339656411,1727813477434,-504.92538752,0.00027,30]
[339656412,1727813477443,-579.37950042,0.00027,30]
[339656413,1727813477456,-500.0,0.00027,30]
[339656414,1727813477465,-500.0,0.00027,30]
[339656415,1727813477474,-500.0,0.00027,30]
[339656416,1727813477483,-500.0,0.00027,30]
[339656417,1727813477493,-500.0,0.00027,30]
[339656418,1727813477502,-500.0,0.00027,30]
[339656419,1727813477511,-500.0,0.00027,30]
[339656420,1727813477521,-500.0,0.00027,30]
[339656421,1727813477530,-500.0,0.00027,30]
[339656422,1727813477540,-765.6648006,0.00027,30]
[339656423,1727813477549,-500.0,0.00027,30]
[339656424,1727813477558,-500.0,0.00027,30]
[339656425,1727813477567,-530.51383539,0.00027,30]
[339656426,1727813477576,-645.86,0.00027,120]
[339656427,1727813477585,-1008.00695299,0.00027,120]
[339656428,1727813477594,-668.85012384,0.00027,120]
[339656429,1727813477603,-504.13488748,0.00027,120]
[339656430,1727813477613,-2000.0,0.00027,120]
[339656431,1727813477623,-236.44348906,0.00027,120]
[339656432,1727813477632,-1450.0,0.00027,2]
[339656433,1727813477641,-152.0,0.00027014,30]
[339656434,1727813477650,-3000.0,0.000271,2]
[339656435,1727813477659,-3468.85,0.00027123,2]
[339656436,1727813477668,-152.0,0.00027273,31]
[339656437,1727813477677,-2245.7198364,0.0002736,120]
[339656438,1727813477686,-200.0,0.00027397,60]
[339656439,1727813477695,-189.893623,0.00027397,7]
[339656440,1727813477704,-189.893623,0.00027397,7]
[339656441,1727813477713,-189.893623,0.00027397,7]
[339656442,1727813477722,-189.893623,0.00027397,7]
[339656443,1727813477731,-189.893623,0.00027397,7]
[339656444,1727813477740,-189.893623,0.00027397,7]
[339656445,1727813477749,-189.893623,0.00027397,7]
[339656446,1727813477758,-189.893623,0.00027397,7]
[339656447,1727813477767,-189.893623,0.00027397,7]
[339656448,1727813477777,-189.893623,0.00027397,7]
[339656449,1727813477786,-189.893623,0.00027397,7]
[339656450,1727813477795,-189.893623,0.00027397,7]
[339656451,1727813477804,-189.893623,0.00027397,7]
[339656452,1727813477813,-189.893623,0.00027397,7]
[339656453,1727813477822,-189.893623,0.00027397,7]
[339656454,1727813477832,-189.893623,0.00027397,7]
[339656455,1727813477840,-189.893623,0.00027397,7]
[339656456,1727813477850,-189.893623,0.00027397,7]
[339656457,1727813477859,-189.893623,0.00027397,7]
[339656458,1727813477875,-189.89362,0.00027397,7]
[339656459,1727813477884,-8173.96,0.00027397,15]
[339656460,1727813477893,-500.0,0.000274,2]
[339656461,1727813477902,-497.0,0.000274,2]
[339656462,1727813477912,-1500.0,0.000274,2]
[339656463,1727813477921,-200.0,0.000274,2]
[339656464,1727813477931,-2875.0,0.00027494,30]
[339656465,1727813477940,-190.21758672,0.000275,2]
[339656466,1727813477949,-13326.08133931,0.000275,2]
[339656467,1727813477958,-1000.0,0.000275,2]
[339656468,1727813477968,-152.0,0.00027533,32]
[339656469,1727813477977,-173.0,0.00027616,2]
[339656470,1727813477987,-150.0,0.000277,4]
[339656471,1727813477996,-152.0,0.00027792,33]
[339656472,1727813478006,-800.0,0.000278,6]
[339656473,1727813478015,-150.0,0.00027814,120]
[339656474,1727813478024,-391.0,0.0002783,15]
[339656475,1727813478033,-2000.0,0.00027953,120]
[339656476,1727813478042,-155.0,0.00027999,2]
[339656477,1727813478051,-3356.62248668,0.00028,2]
[339656478,1727813478061,-12170.23966954,0.00028,2]
[339656479,1727813478071,-150.0,0.00028,7]
[339656480,1727813478080,-1800.0,0.00028,29]
[339656481,1727813478090,-24869.57016054,0.00028,2]
[339656482,1727813478099,-497.39140321,0.00028,2]
[339656483,1727813478108,-488.45695624,0.00028,14]
[339656484,1727813478126,-5945.42348466,0.0002801,2]
[339656485,1727813478135,-152.0,0.00028052,34]
[339656486,1727813478145,-150.0,0.00028159,120]
[339656487,1727813478154,-1422.15528229,0.00028297,120]
[339656488,1727813478164,-152.0,0.00028311,35]
[339656489,1727813478174,-150.0,0.00028432,120]
[339656490,1727813478183,-217.44,0.00028493,2]
[339656491,1727813478193,-3000.0,0.000285,2]
[339656492,1727813478202,-150.0,0.00028554,120]
[339656493,1727813478211,-152.0,0.00028571,36]
[339656494,1727813478220,-150.0,0.00028614,120]
[339656495,1727813478230,-405.75,0.00028666,2]
[339656496,1727813478239,-318.01279161,0.00028767,30]
[339656497,1727813478249,-152.0,0.0002883,37]
[339656498,1727813478258,-318.01279161,0.00028904,30]
[339656499,1727813478267,-2000.0,0.00028941,120]
[339656500,1727813478277,-173.0,0.00028997,2]
[339656501,1727813478286,-5000.0,0.00029,2]
[339656502,1727813478295,-1000.0,0.00029,6]
[339656503,1727813478304,-400.10528704,0.00029,5]
[339656504,1727813478313,-890.0,0.00029,15]
[339656505,1727813478322,-500.0,0.00029,14]
[339656506,1727813478331,-5929.0,0.00029,21]
[339656507,1727813478340,-5469.25007942,0.00029,2]
[339656508,1727813478350,-2373.85879214,0.00029,5]
[339656509,1727813478359,-1800.0,0.00029,30]
[339656510,1727813478374,-1526.76084194,0.00029,30]
[339656511,1727813478384,-1500.0,0.00029,2]
[339656512,1727813478393,-1487.50627043,0.0002901,2]
[339656513,1727813478403,-1007.61704105,0.0002901,2]
[339656514,1727813478412,-5074.08025426,0.0002901,2]
[339656515,1727813478422,-181.94288063,0.0002901,2]
[339656516,1727813478432,-169359.41004101,0.0002901,2]
[339656517,1727813478443,-7217.74732512,0.0002901,2]
[339656518,1727813478455,-124486.35426097,0.0002901,2]
[339656519,1727813478464,-3177.54462002,0.0002901,2]
[339656520,1727813478473,-5841.72127331,0.0002901,2]
[339656521,1727813478483,-9038.97551759,0.0002901,2]
[339656522,1727813478492,-4837.26799376,0.0002901,2]
[339656523,1727813478501,-12560.46025457,0.0002901,2]
[339656524,1727813478510,-5466.59570327,0.0002901,2]
[339656525,1727813478519,-10483.67709051,0.0002901,2]
[339656526,1727813478530,-166021.75722647,0.0002901,2]
[339656527,1727813478539,-14637.77961443,0.0002901,2]
[339656528,1727813478548,-6000.0,0.0002901,2]
[339656529,1727813478557,-150348.63253025,0.0002901,2]
[339656530,1727813478566,-2330.87755691,0.0002901,2]
[339656531,1727813478576,-4902.23740445,0.0002901,2]
[339656532,1727813478586,-10353.82446679,0.0002901,3]
[339656533,1727813478595,-5192.6748405,0.0002901,3]
[339656534,1727813478604,-1248.58877696,0.0002901,4]
[339656535,1727813478617,-953.61367016,0.0002901,4]
[339656536,1727813478626,-6593.34896575,0.0002901,4]
[339656537,1727813478635,-3874.9560212,0.0002901,3]
[339656538,1727813478644,-5072.11877864,0.0002901,2]
[339656539,1727813478654,-13768.06399477,0.0002901,2]
[339656540,1727813478664,-5032.94891224,0.0002901,2]
[339656541,1727813478673,-188.96297303,0.0002901,2]
[339656542,1727813478683,-1210.0,0.0002901,2]
[339656543,1727813478692,-340.81800371,0.0002901,2]
[339656544,1727813478702,-2674.74596449,0.0002901,2]
[339656545,1727813478711,-2402.04362843,0.0002901,2]
[339656546,1727813478721,-2620.64433838,0.0002901,2]
[339656547,1727813478730,-9940.7938404,0.0002901,2]
[339656548,1727813478740,-1045.89719416,0.0002901,2]
[339656549,1727813478750,-851.43977938,0.0002901,2]
[339656550,1727813478760,-1023.10496511,0.0002901,2]
[339656551,1727813478770,-186.8444391,0.0002901,2]
[339656552,1727813478780,-1282.88546134,0.0002901,2]
[339656553,1727813478789,-290.5533478,0.0002901,2]
[339656554,1727813478800,-1880.70926206,0.0002901,2]
[339656555,1727813478810,-180.17950135,0.0002901,2]
[339656556,1727813478819,-643.0,0.0002901,2]
[339656557,1727813478829,-950.020309,0.0002901,2]
[339656558,1727813478838,-561.13379592,0.0002901,2]
[339656559,1727813478848,-1798.94834848,0.0002901,2]
[339656560,1727813478858,-550.0,0.0002901,2]
[339656561,1727813478873,-987.28309301,0.0002901,2]
[339656562,1727813478882,-1012.07993405,0.0002901,2]
[339656563,1727813478892,-551.64069399,0.0002901,2]
[339656564,1727813478902,-150.0,0.0002901,2]
[339656565,1727813478912,-18466.05480617,0.0002901,2]
[339656566,1727813478921,-613.63701219,0.0002901,2]
[339656567,1727813478931,-210.35906012,0.0002901,2]
[339656568,1727813478941,-440.32027685,0.0002901,2]
[339656569,1727813478951,-1045.46912283,0.0002901,2]
[339656570,1727813478960,-2500.0,0.0002901,2]
[339656571,1727813478970,-567.59991829,0.0002901,2]
[339656572,1727813478980,-528.02809588,0.0002901,2]
[339656573,1727813478989,-234087.13730116,0.0002901,2]
[339656574,1727813478999,-893.85948287,0.0002901,2]
[339656575,1727813479008,-471.8665603,0.0002901,2]
[339656576,1727813479018,-10764.27754482,0.0002901,2]
[339656577,1727813479027,-536.52200519,0.0002901,2]
[339656578,1727813479036,-357.24129591,0.0002901,2]
[339656579,1727813479046,-1799.65153216,0.0002901,2]
[339656580,1727813479055,-215.76752821,0.0002901,2]
[339656581,1727813479065,-1553.15473088,0.0002901,2]
[339656582,1727813479074,-5059.76514387,0.0002901,4]
[339656583,1727813479084,-2941.50106688,0.0002901,2]
[339656584,1727813479094,-6999.999999,0.0002901,2]
[339656585,1727813479104,-2159.5708449,0.0002901,2]
[339656586,1727813479114,-10518.9504828,0.0002901,2]
[339656587,1727813479123,-10291.12554718,0.0002901,2]
[339656588,1727813479132,-277.86171681,0.0002901,2]
[339656589,1727813479141,-170.18381496,0.0002901,2]
[339656590,1727813479150,-1451.17003421,0.0002901,2]
[339656591,1727813479159,-821.50148946,0.0002901,15]
[339656592,1727813479169,-547.45755037,0.0002901,5]
[339656593,1727813479178,-1933.40353155,0.0002901,5]
[339656594,1727813479187,-683.74422404,0.0002901,10]
[339656595,1727813479196,-7692.28274855,0.0002901,7]
[339656596,1727813479205,-601.69120672,0.0002901,6]
[339656597,1727813479214,-1701.15154069,0.0002901,15]
[339656598,1727813479223,-3097.0,0.0002901,10]
[339656599,1727813479232,-515.83229165,0.0002901,7]
[339656600,1727813479450,-300.0,0.0002901,15]
[339656601,1727813479460,-951.43473373,0.0002901,5]
[339656602,1727813479469,-2172.53392187,0.0002901,10]
[339656603,1727813479479,-576.69122653,0.0002901,5]
[339656604,1727813479488,-838.87731196,0.0002901,10]
[339656605,1727813479497,-1000.0,0.0002901,10]
[339656606,1727813479506,-500.0,0.0002901,10]
[339656607,1727813479515,-18399.19946392,0.0002901,5]
[339656608,1727813479526,-31176.06467425,0.0002901,7]
[339656609,1727813479535,-212.95952216,0.0002901,5]
[339656610,1727813479544,-1084.4105342,0.0002901,7]
[339656611,1727813479553,-159771.77162401,0.0002901,7]
[339656612,1727813479562,-265.47994689,0.0002901,10]
[339656613,1727813479571,-275.0,0.0002901,14]
[339656614,1727813479581,-206.86720321,0.0002901,5]
[339656615,1727813479590,-171.82941319,0.0002901,2]
[339656616,1727813479600,-95381.21130624,0.0002901,10]
[339656617,1727813479609,-935.08745949,0.0002901,2]
[339656618,1727813479621,-4703.9950836,0.0002901,10]
[339656619,1727813479630,-301688.76504397,0.0002901,14]
[339656620,1727813479639,-1436.03543387,0.0002901,2]
[339656621,1727813479648,-10000.0,0.0002901,2]
[339656622,1727813479658,-7554.71790528,0.0002901,2]
[339656623,1727813479667,-12539.0023161,0.0002901,2]
[339656624,1727813479676,-14459.7063115,0.0002901,2]
[339656625,1727813479686,-54451.48206582,0.0002901,2]
[339656626,1727813479695,-319.25760948,0.0002901,2]
[339656627,1727813479705,-33553.43502325,0.0002901,8]
[339656628,1727813479714,-1000.0,0.0002901,2]
[339656629,1727813479723,-1000.0,0.0002901,2]
[339656630,1727813479732,-1000.0,0.0002901,2]
[339656631,1727813479742,-1000.0,0.0002901,2]
[339656632,1727813479752,-1330.54590768,0.0002901,2]
[339656633,1727813479761,-210.80746248,0.0002901,7]
[339656634,1727813479770,-3788.25767934,0.0002901,15]
[339656635,1727813479779,-150.0,0.0002901,2]
[339656636,1727813479789,-150.0,0.0002901,3]
[339656637,1727813479799,-170271.88007231,0.0002901,2]
[339656638,1727813479809,-572.31775413,0.0002901,2]
[339656639,1727813479818,-11909.00519306,0.0002901,7]
[339656640,1727813479827,-2291.25441795,0.0002901,2]
[339656641,1727813479836,-1542.20458182,0.0002901,2]
[339656642,1727813479846,-150.0,0.0002901,20]
[339656643,1727813479856,-150.0,0.0002901,10]
[339656644,1727813479867,-150.0,0.0002901,11]
[339656645,1727813479878,-150.0,0.0002901,12]
[339656646,1727813479887,-150.0,0.0002901,13]
[339656647,1727813479896,-150.0,0.0002901,14]
[339656648,1727813479907,-150.0,0.0002901,15]
[339656649,1727813479917,-150.0,0.0002901,16]
[339656650,1727813479926,-150.0,0.0002901,17]
[339656651,1727813479936,-150.0,0.0002901,18]
[339656652,1727813479945,-150.0,0.0002901,19]
[339656653,1727813479955,-150.0,0.0002901,2]
[339656654,1727813479964,-22322.90817623,0.0002901,2]
[339656655,1727813479974,-1270.74301958,0.0002901,2]
[339656656,1727813479983,-4917.3,0.0002901,4]
[339656657,1727813479992,-208.62768788,0.0002901,2]
[339656658,1727813480002,-500.0,0.0002901,2]
[339656659,1727813480011,-1472.14459054,0.0002901,2]
[339656660,1727813480020,-152.37501264,0.0002901,2]
[339656661,1727813480030,-8233.77173955,0.0002901,2]
[339656662,1727813480039,-500.0,0.0002901,7]
[339656663,1727813480048,-190.0,0.0002901,2]
[339656664,1727813480058,-150.0,0.0002901,2]
[339656665,1727813480067,-950.02620735,0.0002901,5]
[339656666,1727813480076,-11629.64736044,0.0002901,2]
[339656667,1727813480085,-9999.999999,0.0002901,7]
[339656668,1727813480095,-1000.0,0.0002901,5]
[339656669,1727813480104,-150.0,0.0002901,2]
[339656670,1727813480121,-1039.0,0.0002901,2]
[339656671,1727813480130,-500.0,0.0002901,4]
[339656672,1727813480139,-500.0,0.0002901,4]
[339656673,1727813480148,-150.0,0.0002901,2]
[339656674,1727813480158,-253.37774068,0.0002901,2]
[339656675,1727813480167,-150.64682433,0.0002901,2]
[339656676,1727813480176,-2191.18788735,0.0002901,2]
[339656677,1727813480185,-4335.46226517,0.0002901,7]
[339656678,1727813480194,-150.0,0.0002901,2]
[339656679,1727813480203,-150.0,0.0002901,2]
[339656680,1727813480212,-150.0,0.0002901,2]
[339656681,1727813480222,-153.10629105,0.0002901,2]
[339656682,1727813480231,-1000.0,0.0002901,2]
[339656683,1727813480240,-1000.0,0.0002901,2]
[339656684,1727813480249,-1000.0,0.0002901,2]
[339656685,1727813480258,-1000.0,0.0002901,2]
[339656686,1727813480267,-1000.0,0.0002901,2]
[339656687,1727813480276,-1000.0,0.0002901,2]
[339656688,1727813480285,-600.0,0.0002901,2]
[339656689,1727813480295,-15963.98189102,0.0002901,2]
[339656690,1727813480304,-162.31689538,0.0002901,7]
[339656691,1727813480314,-7945.03444204,0.0002901,2]
[339656692,1727813480323,-406.97342689,0.0002901,30]
[339656693,1727813480332,-652.2233,0.0002901,30]
[339656694,1727813480340,-152.39492433,0.0002901,30]
[339656695,1727813480350,-160.0,0.0002901,30]
[339656696,1727813480359,-4160.0,0.0002901,120]
[339656697,1727813480371,-1007.03200883,0.0002901,30]
[339656698,1727813480388,-3000.0,0.0002901,120]
[339656699,1727813480397,-605.9336773,0.0002901,60]
[339656700,1727813480407,-1000.0,0.0002901,30]
[339656701,1727813480416,-1000.0,0.0002901,30]
[339656702,1727813480425,-1000.0,0.0002901,30]
[339656703,1727813480434,-1000.0,0.0002901,30]
[339656704,1727813480447,-1000.0,0.0002901,30]
[339656705,1727813480456,-1000.0,0.0002901,30]
[339656706,1727813480465,-724.39187587,0.0002901,30]
[339656707,1727813480474,-1000.0,0.0002901,30]
[339656708,1727813480485,-1000.0,0.0002901,30]
[339656709,1727813480495,-1000.0,0.0002901,30]
[339656710,1727813480504,-1000.0,0.0002901,30]
[339656711,1727813480513,-194.0,0.0002901,30]
[339656712,1727813480522,-194.0,0.0002901,30]
[339656713,1727813480532,-194.0,0.0002901,30]
[339656714,1727813480541,-200.0,0.0002901,30]
[339656715,1727813480551,-188.0,0.0002901,30]
[339656716,1727813480561,-200.0,0.0002901,30]
[339656717,1727813480570,-188.0,0.0002901,30]
[339656718,1727813480579,-647.0,0.0002901,30]
[339656719,1727813480589,-647.0,0.0002901,30]
[339656720,1727813480598,-3177.75416475,0.0002901,2]
[339656721,1727813480608,-200.25035865,0.0002901,30]
[339656722,1727813480621,-1433.42067016,0.0002901,120]
[339656723,1727813480630,-3462.19338711,0.0002901,90]
[339656724,1727813480639,-3057.05338979,0.0002901,30]
[339656725,1727813480648,-490.778815,0.0002901,30]
[339656726,1727813480657,-366.79604774,0.0002901,30]
[339656727,1727813480666,-532.58898511,0.0002901,60]
[339656728,1727813480675,-2170.60691771,0.0002901,120]
[339656729,1727813480685,-48207.20996181,0.0002901,16]
[339656730,1727813480695,-484.93144167,0.0002901,30]
[339656731,1727813480704,-841.4029242,0.0002901,30]
[339656732,1727813480714,-1000.0,0.0002901,30]
[339656733,1727813480723,-2665.61376954,0.0002901,30]
[339656734,1727813480733,-2283.45505618,0.0002901,30]
[339656735,1727813480742,-2709.89918342,0.0002901,120]
[339656736,1727813480752,-1127.14847448,0.0002901,120]
[339656737,1727813480761,-1932.38790085,0.0002901,30]
[339656738,1727813480771,-710.02119818,0.0002901,30]
[339656739,1727813480780,-1598.67069935,0.0002901,30]
[339656740,1727813480789,-1954.65300511,0.0002901,120]
[339656741,1727813480799,-1540.85557446,0.0002901,120]
[339656742,1727813480808,-369.37678763,0.0002901,10]
[339656743,1727813480817,-254.70201123,0.0002901,30]
[339656744,1727813480826,-2500.0,0.0002901,30]
[339656745,1727813480836,-398.55935859,0.0002901,120]
[339656746,1727813480845,-725.60873602,0.0002901,120]
[339656747,1727813480855,-3016.34709955,0.0002901,120]
[339656748,1727813480866,-824.16343648,0.0002901,30]
[339656749,1727813480876,-1200.0,0.0002901,120]
[339656750,1727813480885,-3000.0,0.0002901,30]
[339656751,1727813480894,-832.0461785,0.0002901,30]
[339656752,1727813480904,-200.49754233,0.0002901,31]
[339656753,1727813480914,-270.51680482,0.0002901,120]
[339656754,1727813480923,-285.95243543,0.0002901,120]
[339656755,1727813480933,-896.23236783,0.0002901,30]
[339656756,1727813480943,-483.90073595,0.0002901,120]
[339656757,1727813480952,-2362.18160072,0.0002901,60]
[339656758,1727813480962,-1052.0158145,0.0002901,31]
[339656759,1727813480971,-200.59515307,0.0002901,30]
[339656760,1727813480981,-925.88705289,0.0002901,30]
[339656761,1727813480990,-1045.4882734,0.0002901,120]
[339656762,1727813481000,-199.17044844,0.0002901,120]
[339656763,1727813481010,-1817.56956486,0.0002901,120]